Cogmind - Beta 11.1 @@@ ROGUE MODE // 2022.04.26 @ 13:36:46 Player: Infomantis Result: Destroyed by G-47 Trooper with Particle Gun Performance ------------- Evolutions (2) 1000 Regions Visited (4) 800 Robots Destroyed (38) 190 Value Destroyed (881) 881 Prototype IDs (3) 60 Alien Tech Used (0) 0 Bonus (-9) -9 TOTAL SCORE: 2922 Bonus ------- Friendly Fire -9 Cogmind --------- Core Integrity 0/550 Matter 244/300 Energy 98/100 System Corruption 4% Temperature Cool (27) Movement Core (50) Location -8/Materials Parts ------- > --- POWER (1) -------- (None) > --- PROPULSION (4) --- (None) > --- UTILITY (4) ------ Hacking Suite > --- WEAPON (2) ------- (None) > --- INVENTORY (5) ---- Medium Storage Unit Weight Redist. System Improved Signal Interpreter Hacking Suite Plasma Flamer Peak State ------------ > --- POWER ------------ (None) > --- PROPULSION ------- Hover Unit Aerolev Unit > --- UTILITY ---------- Hardened Medium Armor Plating Improved Light Armor Plating Hacking Suite Hacking Suite > --- WEAPON ----------- High-powered Shotgun > --- INVENTORY -------- Medium Storage Unit Weight Redist. System Improved Signal Interpreter Hacking Suite Plasma Flamer [Rating: 21] Favorites ----------- Power Light Ion Engine Engine Light Ion Engine Propulsion Light Treads Treads Light Treads Leg Aluminum Leg Wheel Wheel Hover Unit Aerolev Unit Utility Seismic Detector Device Seismic Detector Storage Medium Storage Unit Hackware Hacking Suite Protection Improved Light Armor Plating Weapon Medium Laser Energy Gun Medium Laser Energy Cannon Heavy Particle Cannon Ballistic Gun High-powered Shotgun Ballistic Cannon Improved Light Cannon Launcher Mini Grenade Launcher Build | -11 -10 -10 -9 -8 ------- Run | Scr Mat Min Mat Mat Slots Evolved 4 | . . . 2 2 Power . | . . . . . Propulsion 2 | . . . 1 1 Utility 2 | . . . 1 1 Weapon . | . . . . . Parts Attached 39 | 7 2 1 11 18 Power 6 | 1 . 1 3 1 Engine 6 | 1 . 1 3 1 Core . | . . . . . Reactor . | . . . . . Propulsion 12 | 2 . . 3 7 Treads 5 | 2 . . 1 2 Leg 1 | . . . . 1 Wheel 2 | . . . 2 . Hover 4 | . . . . 4 Flight . | . . . . . Utility 12 | 2 2 . 2 6 Device 5 | 1 1 . 2 1 Storage 2 | 1 1 . . . Processor . | . . . . . Hackware 3 | . . . . 3 Protection 2 | . . . . 2 Artifact . | . . . . . Weapon 9 | 2 . . 3 4 Energy Gun 3 | 2 . . 1 . Energy Cannon 1 | . . . . 1 Ballistic Gun 1 | . . . . 1 Ballistic Cannon 3 | . . . 2 1 Launcher 1 | . . . . 1 Special Weapon . | . . . . . Impact Weapon . | . . . . . Slashing Weapon . | . . . . . Piercing Weapon . | . . . . . Special Melee Weapon . | . . . . . Unidentified Prototypes 1 | . . . . 1 Parts Lost 21 | . . . 3 18 Power 2 | . . . . 2 Propulsion 10 | . . . 3 7 Utility 5 | . . . . 5 Weapon 4 | . . . . 4 Highest Loss Streak 12 | . . . 2 12 To Critical Strikes . | . . . . . Average Slot Usage (%) 90 | . 100 100 88 61 Engine 11 | . 14 14 11 6 Treads 20 | . 28 28 15 3 Wheel 3 | . . . 9 5 Device 15 | . 14 14 19 12 Storage 11 | . 14 14 11 5 Hackware 1 | . . . . 8 Energy Gun 20 | . 28 28 16 5 Ballistic Cannon 2 | . . . 5 5 Naked Turns . | . . . . . Heaviest Build 26 | 12 17 17 24 26 Greatest Support 40 | 40 40 40 40 20 Greatest Overweight (x) 4 | 2 . . 2 4 Average Overweight (x) . | . . . . 1 Largest Inventory Capacity 10 | 8 10 10 10 10 Average Capacity 9 | 7 8 10 10 8 Most Carried 10 | 7 10 10 10 10 Average Carried 8 | 4 8 9 9 8 Final Capacity 10 | 8 10 10 10 5 Final Carried 10 | 7 10 10 10 5 Class Distribution -------------------- 95% | Mutant 4% | Hacker-Mutant Dominant Class ---------------- Mutant | -10/Materials Mutant | -10/Mines Mutant | -9/Materials Mutant | -8/Materials Resources | -11 -10 -10 -9 -8 ----------- Run | Scr Mat Min Mat Mat Matter Collected 636 | 270 10 20 199 137 Remotely . | . . . . . Salvage Created 934 | 159 77 72 396 230 Parts 58 | 5 9 8 21 15 Haulers Intercepted 1 | . 1 . . . Recyclers Shooed . | . . . . . Parts Field Recycled . | . . . . . Retrieved Matter . | . . . . . Parts Self-Destructed . | . . . . . Prevented . | . . . . . Kills | -11 -10 -10 -9 -8 ------- Run | Scr Mat Min Mat Mat Combat Hostiles Destroyed 30 | . 2 6 16 6 Guns 18 | . 2 6 8 2 Cannons 10 | . . . 8 2 AOE 2 | . . . . 2 Classes Destroyed 9 | 2 2 . 3 2 Tunneler 3 | 3 . . . . Hauler 1 | . 1 . . . Recycler 1 | 1 . . . . Operator 2 | . . . 1 1 Watcher 1 | . . . . 1 Swarmer 14 | . 2 6 6 . Grunt 11 | . . . 7 4 Brawler 1 | . . . . 1 Sentry 4 | . . . 3 1 Best Kill Streak 4 | 2 2 3 4 4 Combat Bots Only 4 | . 2 3 4 3 Max Kills in Single Turn 2 | 1 1 1 1 2 Gunslinging . | . . . . . Exploded 2 | . . . . 2 Melee . | . . . . . Uniques/NPCs Destroyed . | . . . . . Combat | -11 -10 -10 -9 -8 -------- Run | Scr Mat Min Mat Mat Damage Taken 2887 | . 38 162 577 2110 Core 665 | . 10 10 86 559 Absorbed by Shields . | . . . . . Core Remaining (%) 90 | 100 . 92 78 . Volleys Fired 91 | 12 5 11 37 26 Largest 2 | 2 2 2 2 2 Hottest 115 | 90 90 90 115 104 Shots Fired 166 | 24 10 22 73 37 Gun 122 | 24 10 22 47 19 Cannon 42 | . . . 26 16 Launcher 2 | . . . . 2 Special . | . . . . . Kinetic 46 | . . . 26 20 Thermal 118 | 24 10 22 47 15 Explosive 2 | . . . . 2 Electromagnetic . | . . . . . Robot Hit Streak 16 | 7 3 7 16 6 Robot Miss Streak 11 | 1 3 3 8 11 Penetration Max . | . . . . . Secondary Targets 2 | . . 1 1 . Max Gunslinging Chain 1 | . . 1 1 . Shots Hit Robots 125 | 17 5 12 61 30 Core Hits 93 | 5 4 6 54 24 Critical Kills . | . . . . . Critical Parts Destroyed . | . . . . . Critical Strikes 4 | 2 . . 2 . Burn 2 | 2 . . . . Blast 2 | . . . 2 . Melee Attacks . | . . . . . Impact . | . . . . . Slashing . | . . . . . Piercing . | . . . . . Sneak Attacks . | . . . . . Combat Hostiles . | . . . . . Follow-up Attacks . | . . . . . Damage Inflicted 2147 | 204 61 166 965 751 Guns 1236 | 204 61 166 557 248 Cannons 661 | . . . 408 253 Explosions 240 | . . . . 240 Melee . | . . . . . Ramming 10 | . . . . 10 Kinetic 804 | . . . 408 396 Thermal 1093 | 204 61 166 557 105 Explosive 240 | . . . . 240 Electromagnetic . | . . . . . Impact . | . . . . . Slashing . | . . . . . Piercing . | . . . . . Highest Corruption 4 | . . . . 4 Average Corruption 4 | . . . . 4 Corruption Purged . | . . . . . Corruption Blocked . | . . . . . Effects 3 | . . . . 3 Matter Fused 2 | . . . . 2 Data Loss (major) 1 | . . . . 1 Overload Shots . | . . . . . Overflow Damage 16 | . . . . 16 Projectiles . | . . . . . Explosions 16 | . . . . 16 Melee . | . . . . . Knockbacks 7 | . . . 6 1 Impact . | . . . . . Kinetic 7 | . . . 6 1 Secondary . | . . . . . Self-Inflicted Damage 96 | . . . . 96 Shots 2 | . . . . 2 Rammed 3 | . . . . 3 Targets Rammed 5 | . . . . 5 Kicked 2 | . . . . 2 Crushed . | . . . . . Highest Temperature 270 | 210 90 240 270 167 Average Temperature 69 | 79 36 103 72 39 Received Heat Transfer 1254 | . . . 210 1044 Siege Activations . | . . . . . Robots Corrupted . | . . . . . Combat Hostiles . | . . . . . Parts Fried . | . . . . . Impact Corruptions . | . . . . . Robots Melted . | . . . . . Combat Hostiles . | . . . . . Parts Melted 7 | 6 . . 1 . Heat Transferred 2320 | 705 149 397 927 142 Parts Sabotaged . | . . . . . Parts Stolen . | . . . . . Parts Stripped . | . . . . . Power Chain Reactions . | . . . . . Missiles Intercepted . | . . . . . Alert | -11 -10 -10 -9 -8 ------- Run | Scr Mat Min Mat Mat Peak Influence 292 | 20 107 145 284 292 Initial 109 | . 13 5 . 109 Average 88 | 8 68 37 136 194 Maximum Alert Level 1 | . . . 1 1 Low Security (%) 83 | 100 100 100 69 43 Level 1 16 | . . . 30 56 Level 2 . | . . . . . Level 3 . | . . . . . Level 4 . | . . . . . Level 5 . | . . . . . High Security . | . . . . . Max Security . | . . . . . Squads Dispatched 6 | . . . 4 2 Investigation 2 | . . . 1 1 Extermination . | . . . . . Reinforcement 4 | . . . 3 1 Assault . | . . . . . Garrison . | . . . . . Intercept . | . . . . . Searches Triggered . | . . . . . Construction Impeded . | . . . . . Haulers Reinforced . | . . . . . Active Scanning Responses . | . . . . . Cargo Convoy Interrupts . | . . . . . Stealth | -11 -10 -10 -9 -8 --------- Run | Scr Mat Min Mat Mat Distress Signals 6 | . . . 4 2 Communications Jammed . | . . . . . Distress Signals . | . . . . . Times Spotted 72 | . 10 5 25 32 Peak Tracking Total 12 | . 4 3 5 12 Tactical Retreats 4 | . . . 1 3 Traps | -11 -10 -10 -9 -8 ------- Run | Scr Mat Min Mat Mat Traps Triggered 1 | . . . 1 . Indirectly . | . . . . . Trap Hack Attempts . | . . . . . Triggered . | . . . . . Disarmed . | . . . . . Reprogrammed . | . . . . . Reused . | . . . . . Traps Extracted . | . . . . . Installed . | . . . . . Triggered . | . . . . . Machines | -11 -10 -10 -9 -8 ---------- Run | Scr Mat Min Mat Mat Machines Disabled . | . . . . . Max in Single Turn . | . . . . . Machines Sabotaged . | . . . . . Garrisons Compromised . | . . . . . Overloaded Fab Kills . | . . . . . Hacking | -11 -10 -10 -9 -8 --------- Run | Scr Mat Min Mat Mat Machines Accessed 13 | . 5 . 5 3 Terminals 10 | . 4 . 4 2 Fabricators . | . . . . . Repair Stations 1 | . . . 1 . Recycling Units 2 | . 1 . . 1 Scanalyzers . | . . . . . Garrison Access . | . . . . . Total Hacks 36 | . 15 . 14 7 Successful 17 | . 10 . 4 3 Failed 19 | . 5 . 10 4 Catastrophic 1 | . . . . 1 Database Lockouts . | . . . . . Manual 21 | . 11 . 7 3 Terminals 30 | . 13 . 13 4 Fabricators . | . . . . . Repair Stations 1 | . . . 1 . Recycling Units 5 | . 2 . . 3 Scanalyzers . | . . . . . Garrison Access . | . . . . . Terminal Hacks 9 | . 6 . 2 1 Part Schematic 1 | . 1 . . . Robot Analysis 1 | . 1 . . . Prototype ID Bank 1 | . . . 1 . Branch Access Points 1 | . . . . 1 Terminal Index 2 | . 1 . 1 . Transport Status 1 | . 1 . . . Hauler Manifests 1 | . 1 . . . Registered Components 1 | . 1 . . . Fabricator Hacks . | . . . . . Repair Station Hacks . | . . . . . Recycling Unit Hacks 3 | . 1 . . 2 Report Inventory 2 | . 1 . . 1 Retrieve Components 1 | . . . . 1 Scanalyzer . | . . . . . Garrison Access Hacks . | . . . . . Unauthorized Hacks 5 | . 3 . 2 . Terminals 3 | . 2 . 1 . Assimilate 1 | . 1 . . . Botnet 1 | . . . 1 . Operators 1 | . 1 . . . Fabricators . | . . . . . Repair Stations 1 | . . . 1 . Mechanics 1 | . . . 1 . Recycling Units 1 | . 1 . . . Recyclers 1 | . 1 . . . Scanalyzers . | . . . . . Garrison Access . | . . . . . Data Cores Recovered . | . . . . . Used . | . . . . . Hacking Detections 11 | . 4 . 5 2 Full Trace Events 2 | . . . 1 1 Feedback Events . | . . . . . Feedback Blocked . | . . . . . Robot Schematics Acquired . | . . . . . Robots Built . | . . . . . Authchips . | . . . . . Time . | . . . . . Total Robot Build Rating . | . . . . . Part Schematics Acquired 1 | . 1 . . . Parts Built . | . . . . . Authchips . | . . . . . Time . | . . . . . Total Part Build Rating . | . . . . . Parts Repaired . | . . . . . Time . | . . . . . Parts Recycled . | . . . . . Recycled Matter . | . . . . . Retrieved Matter . | . . . . . Retrieved Components 3 | . . . . 3 Parts Scanalyzed . | . . . . . Part Schematics Acquired . | . . . . . Parts Damaged . | . . . . . Bothacking | -11 -10 -10 -9 -8 ------------ Run | Scr Mat Min Mat Mat Used RIF Installer . | . . . . . Robots Hacked . | . . . . . Non-combat . | . . . . . Combat . | . . . . . Robot Hacks Applied . | . . . . . Relay Couplers Released . | . . . . . Fabnet Peak Effective % . | . . . . . Robots Rewired . | . . . . . Allies Hacked . | . . . . . Hacks Repelled . | . . . . . Allies | -11 -10 -10 -9 -8 -------- Run | Scr Mat Min Mat Mat Total Allies 1 | . 1 . . . Largest Group 1 | . 1 1 1 . Highest-Rated Group 10 | . 10 10 10 . Highest-Rated Ally 10 | . 10 10 10 . Total Orders . | . . . . . Ally Attacks . | . . . . . Total Damage . | . . . . . Kills . | . . . . . Allies Corrupted . | . . . . . Allies Melted . | . . . . . Intel | -11 -10 -10 -9 -8 ------- Run | Scr Mat Min Mat Mat Robot Analysis Total 1 | . 1 . . . Derelict Logs Recovered 2 | . . 2 . . Drone Launches . | . . . . . Drone Recoveries . | . . . . . Exploration | -11 -10 -10 -9 -8 ------------- Run | Scr Mat Min Mat Mat Turns Passed 2554 | 222 437 888 585 422 Spaces Moved 1564 | 110 252 532 314 356 Core 96 | 12 . . . 84 Treads 1041 | 98 252 532 158 1 Legs 12 | . . . . 12 Wheels 335 | . . . 156 179 Hover 80 | . . . . 80 Flight . | . . . . . Fastest Speed 48 | 50 160 160 80 48 Average Speed 137 | 153 160 160 131 87 Slowest Speed 250 | 160 160 160 240 250 Overloaded Moves . | . . . . . Propulsion Burnouts . | . . . . . Robots Hopped . | . . . . . Cave-ins Triggered . | . . . . . Exploration Rate (%) 47 | 8 47 99 39 44 Regions Visited 4 Branch Regions 1 Pre-discovered Areas 2 | . . 2 . . Known Exits Taken . | . . . . . Unknown Exits Taken 4 | 1 1 1 1 . Scrap Searched 1 | . . 1 . . Spaces Dug . | . . . . . Terrain Destroyed 11 | . . . . 11 Melee . | . . . . . Projectile . | . . . . . AOE 11 | . . . . 11 Terrain Rammed . | . . . . . Walls Destroyed . | . . . . . Machines Disabled . | . . . . . Actions | -11 -10 -10 -9 -8 --------- Run | Scr Mat Min Mat Mat Total 1804 | 136 277 548 415 428 Wait 66 | 1 12 2 38 13 Move 1560 | 109 251 531 313 356 Hop . | . . . . . Pick Up 21 | 7 4 1 7 2 Fast Attach 22 | 7 . . 5 10 Attach 10 | . . . 3 7 Detach 2 | . . . . 2 Swap 7 | . 2 1 3 1 Drop 20 | . 3 2 9 6 Fire 91 | 12 5 11 37 26 Melee . | . . . . . Ram 3 | . . . . 3 Kick 2 | . . . . 2 Crush . | . . . . . Escape Stasis . | . . . . . Rewire . | . . . . . Trap . | . . . . . Miscellaneous . | . . . . . Route ------- -11/Scrapyard -10/Materials -10/Mines (discovered 3 exits: *Mat x2 / [*Exi]) -9/Materials -8/Materials History --------- Turn | Location | Event 4 | -11/Scrapyard | Discovered new exit (range 16) 223 | -11/Scrapyard | Entered Materials 300 | -10/Materials | Build established: Mutant 411 | -10/Materials | Discovered new exit (range 16) 660 | -10/Materials | Entered Mines 660 | -10/Mines | Accompanied by 1 ally 815 | -10/Mines | Deemed a non-threat by the Exiles lab entrance 817 | -10/Mines | Discovered new exit (range 5) 901 | -10/Mines | Discovered new exit (range 3) 940 | -10/Mines | Discovered new exit (range 8) 1081 | -10/Mines | Learned location of Zion (-7) 1214 | -10/Mines | A weapon hastily lodged in a ceiling crevice suddenly fell to the ground 1228 | -10/Mines | Learned location of Recycling (-9) 1548 | -10/Mines | Entered Materials 1548 | -9/Materials | Accompanied by 1 ally 1548 | -9/Materials | Evolved 2 slots: Propulsion x1, Utility x1 2121 | -9/Materials | Discovered new exit (range 9) 2133 | -9/Materials | Entered another Materials area 2133 | -8/Materials | Evolved 2 slots: Propulsion x1, Utility x1 2446 | -8/Materials | Lost 12 parts (2p4n3u3w) 2476 | -8/Materials | Core integrity fell below 50% 2533 | -8/Materials | Core integrity fell below 20% 2542 | -8/Materials | Lost 6 parts (3n2u1w) 2555 | -8/Materials | Destroyed by G-47 Trooper with Particle Gun Last Messages --------------- 02475_ K-01 Serf collects debris. 02475_ K-01 Serf cleans the Matter Filter. 02476_ K-01 Serf collects debris. 02488_ Acquired Hvy. Particle Cannon. 02490_ G-47 Trooper suffers critical hit (Burn). 02498_ Aerolev Unit destroyed. 02501_ Imp. Light Armor Plating destroyed. 02501_ Critical hit (Burn: +37). 02504_ Aluminum Leg destroyed. 02508_ Dropped Hrd. Medium Armor Plating. 02509_ Dropped Hvy. Particle Cannon. 02510_ K-01 Serf cleans the Matter Filter. 02511_ Hacking Suite destroyed. 02513_ K-01 Serf cleans the Nuclear Reactor. 02523_ K-01 Serf cleans the Matter Filter. 02527_ System corrupted: Matter fused (-6). 02527_ Slammed into K-01 Serf. 02533_ Slammed into Y-45 Defender. 02554_ S-10 Pest destroyed. 02555_ Critical hit (Burn: +37). Map ----- +----------------------------------------------------+ | ## #??????????????/ #??# "T" # ####?? | | ###+#####????????????# #??# """ # #????? | | #????????????# ???######## #????? | | #?????????? #????? | | #????????????#+???########/##+#????? | | """ """ #??????????????????????# #????? | | """ """ #??????????????????????# ! = #????? | | """ """ #??????????????????????# #????? | | #??????????????????????# *! #????? | | #??????????????????????#! *! #????? | | ########???????????????????????# #????? | | ???????????????????????????????###/####????? | | ?????????????????################# #???????? | | ????????????????? ##??????? | | ?????????????? #??????? | | ?????????????? #??????? | | ??????????????? """ """ #??????? | | ???????????????? k""""""""" #??????? | | ???????????????T o """"" [%## #??????? | | ???????????????" =## #??????? | | ?????????????? * ## #??????? | | ?????????????? ## #??????? | | ????????????????###### ## #??????? | | ?????????????????????# ###+#### #??????? | | ?????????????????????# # + ??????? | | ?????????????????????# @ """ # ??????? | | ?????????????????????# # """ # ?????? | | ?????????????????????# b # """ ## ## ?????? | | ?????????????????????##g?# #? #? !????? | | ?????????????????????? ?#! ! !#? #???????? | | ????????????????????? g??########??????????? | | ???????????????????? ????????????????????? | | ??????????????????? ?????????????????????? | | ??????????????????####?????????????????????? | | ???????????????????????????????????????????? | | ???????????????????????????????????????????? | | ???????????????????????????????????????????? | | ???????????????????????????????????????????? | | ???????????????????????????????????????????? | | ???????????????????????????????????????????? | | ???????????????????????????????????????????? | | ???????????????????????????????????????????? | | ???????????????????????????????????????????? | | ???????????????????????????????????????????? | | ???????????????????????????????????????????? | | ???????????????????????????????????????????? | | ???????????????????????????????????????????? | | ???????????????????????????????????????????? | | ???????????????????????????????????????????? | | ???????????????????????????????????????????? | +----------------------------------------------------+ Best States ------------- Heat Dissipation 41 Energy Generation 10 Energy Capacity 250 Matter Stores 300 Matter Capacity 300 Sight Range 16 Terrain Scan Range 16 Terrain Scan Density 10 Armor Coverage 375 Evasion (%) 54 Recoil Reduction 2 Offensive Hacking 20 Item Schematics ----------------- Sml. Storage Unit | -10/Materials | Hacked Robot Schematics ------------------ None Fabricated ------------ Nothing Alien Tech Used ----------------- None Achievements -------------- None Challenges ------------ None Game ------ Seed EfficiencyHeartCasing Manual? 0 Play Time 00:26:41 Cumulative 191.9 hours Start 2022.04.26 @ 13:05:00 End 2022.04.26 @ 13:36:46 Sessions 1 Manual Loads 0 Difficulty Rogue Special Mode None Game No. 142 Rogue 119 Adventurer 6 Explorer 17 Win Type - Total 15 Types 9/0/2/1/0/1/1/1/0 Lore% 91 Gallery% 90 Achievement% 67 Wizard Run 0 Options --------- ASCII 0 Keyboard 0 Movement Numpad Keybinds 0 Fullscreen 1 Font 12/Fuzzy Map View 83x54 Tactical HUD 1 Map Filters NONE Filters NONE Steam 1 RUN: 10b9d9f6-1260-40af-8fb4-43ed5f556825